fUST/lending_fUST_20250222
["ID","MTS","AMOUNT","RATE_DAILY","PERIOD"]
[354032606,1740187845337,-500.0,0.0001378,2]
[354032607,1740187845346,-500.0,0.0001378,2]
[354032608,1740187845355,-427.06457576,0.00013845,2]
[354032609,1740187845365,-388.403669,0.00013862,2]
[354032610,1740187845375,-388.403669,0.00013862,2]
[354032611,1740187845385,-571.06224051,0.00013863,2]
[354032612,1740187845395,-500.0,0.00013863,2]
[354032613,1740187845405,-331.17445129,0.00013863,2]
[354032614,1740187845416,-500.0,0.00013863,2]
[354032615,1740187845426,-500.0,0.00013863,2]
[354032616,1740187845436,-172.36534935,0.00013863,2]
[354032617,1740187845445,-601.52870934,0.00013863,2]
[354032618,1740187845455,-500.0,0.00013863,2]
[354032619,1740187845466,-500.0,0.00013863,2]
[354032620,1740187845476,-500.0,0.00013863,2]
[354032621,1740187845485,-500.0,0.00013863,2]
[354032622,1740187845495,-500.0,0.00013863,2]
[354032623,1740187845505,-500.0,0.00013863,2]
[354032624,1740187845515,-500.0,0.00013863,2]
[354032625,1740187845525,-500.0,0.00013863,2]
[354032626,1740187845535,-500.0,0.00013863,2]
[354032627,1740187845544,-500.0,0.00013863,2]
[354032628,1740187845554,-500.0,0.00013863,2]
[354032629,1740187845564,-500.0,0.00013863,2]
[354032630,1740187845575,-500.0,0.00013863,2]
[354032631,1740187845586,-500.0,0.00013863,2]
[354032632,1740187845596,-273.91,0.00013863,2]
[354032633,1740187845606,-500.0,0.00013863,2]
[354032634,1740187845616,-500.0,0.00013863,2]
[354032635,1740187845627,-500.0,0.00013863,2]
[354032636,1740187845636,-500.0,0.00013863,2]
[354032637,1740187845646,-468.95297719,0.00013863,2]
[354032638,1740187845658,-241.30476702,0.00013863,2]
[354032639,1740187845669,-500.0,0.00013863,2]
[354032640,1740187845678,-500.0,0.00013863,2]
[354032641,1740187845687,-500.0,0.00013863,2]
[354032643,1740187845697,-500.0,0.00013863,2]
[354032644,1740187845707,-500.0,0.00013863,2]
[354032645,1740187845718,-500.0,0.00013863,2]
[354032646,1740187845728,-599.62150983,0.00013863,2]
[354032647,1740187845737,-500.0,0.00013863,2]
[354032648,1740187845747,-500.0,0.00013863,2]
[354032649,1740187845756,-500.0,0.00013863,2]
[354032650,1740187845765,-500.0,0.00013863,2]
[354032651,1740187845775,-500.0,0.00013863,2]
[354032652,1740187845784,-500.0,0.00013863,2]
[354032654,1740187845794,-500.0,0.00013863,2]
[354032655,1740187845803,-500.0,0.00013863,2]
[354032656,1740187845812,-500.0,0.00013863,2]
[354032657,1740187845821,-500.0,0.00013863,2]
[354032658,1740187845831,-500.0,0.00013863,2]
[354032659,1740187845840,-500.0,0.00013863,2]
[354032660,1740187845850,-500.0,0.00013863,2]
[354032661,1740187845929,-506.47143884,0.00013863,2]
[354032662,1740187845940,-500.0,0.00013863,2]
[354032663,1740187845950,-500.0,0.00013863,2]
[354032664,1740187845960,-500.0,0.00013863,2]
[354032665,1740187845972,-500.0,0.00013863,2]
[354032666,1740187845981,-601.84,0.00013863,2]
[354032668,1740187845990,-500.0,0.00013863,2]
[354032670,1740187845999,-500.0,0.00013863,2]
[354032672,1740187846009,-500.0,0.00013863,2]
[354032673,1740187846018,-500.0,0.00013863,2]
[354032675,1740187846027,-500.0,0.00013863,2]
[354032677,1740187846037,-500.0,0.00013863,2]
[354032679,1740187846046,-500.0,0.00013863,2]
[354032681,1740187846055,-500.0,0.00013863,2]
[354032683,1740187846064,-527.78,0.00013863,2]
[354032684,1740187846074,-500.0,0.00013863,2]
[354032685,1740187846083,-912.55,0.00013863,2]
[354032686,1740187846092,-500.0,0.00013863,2]
[354032687,1740187846101,-500.0,0.00013863,2]
[354032688,1740187846111,-240.12,0.00013863,2]
[354032689,1740187846120,-500.0,0.00013863,2]
[354032690,1740187846129,-2848.24689337,0.00013863,2]
[354032691,1740187846158,-6585.71310663,0.00013863,2]
[354032692,1740187846167,-500.0,0.00013863,2]
[354032693,1740187846178,-500.0,0.00013863,2]
[354032694,1740187846187,-500.0,0.00013863,2]
[354032695,1740187846196,-500.0,0.00013863,2]
[354032696,1740187846206,-500.0,0.00013863,2]
[354032697,1740187846215,-500.0,0.00013863,2]
[354032698,1740187846226,-500.0,0.00013863,2]
[354032699,1740187846236,-500.0,0.00013863,2]
[354032700,1740187846246,-500.0,0.00013863,2]
[354032701,1740187846255,-500.0,0.00013863,2]
[354032702,1740187846265,-500.0,0.00013863,2]
[354032703,1740187846275,-500.0,0.00013863,2]
[354032704,1740187846284,-500.0,0.00013863,2]
[354032705,1740187846294,-151.0,0.00013863,2]
[354032706,1740187846303,-500.0,0.00013863,2]
[354032707,1740187846313,-500.0,0.00013863,2]
[354032708,1740187846322,-500.0,0.00013863,2]
[354032709,1740187846331,-500.0,0.00013863,2]
[354032710,1740187846341,-500.0,0.00013863,2]
[354032711,1740187846351,-500.0,0.00013863,2]
[354032712,1740187846361,-2126.18,0.00013863,2]
[354032713,1740187846371,-500.0,0.00013863,2]
[354032714,1740187846381,-500.0,0.00013863,2]
[354032715,1740187846390,-500.0,0.00013863,2]
[354032716,1740187846400,-500.0,0.00013863,2]
[354032717,1740187846409,-500.0,0.00013863,2]
[354032718,1740187846418,-500.0,0.00013863,2]
[354032719,1740187846428,-500.0,0.00013863,2]
[354032720,1740187846438,-500.0,0.00013863,2]
[354032721,1740187846447,-666.24,0.00013863,2]
[354032722,1740187846456,-500.0,0.00013863,2]
[354032723,1740187846467,-4209.51,0.00013863,2]
[354032724,1740187846476,-500.0,0.00013863,2]
[354032725,1740187846487,-677.23,0.00013863,2]
[354032726,1740187846496,-500.0,0.00013863,2]
[354032727,1740187846505,-678.49115546,0.00013863,2]
[354032728,1740187846518,-594.80884454,0.00013863,2]
[354032729,1740187846527,-165.8285517,0.00013863,2]
[354032730,1740187846538,-343.3630431,0.00013863,2]
[354032731,1740187846547,-138.1609239,0.00013863,2]
[354032732,1740187846559,-557.8190761,0.00013863,2]
[354032733,1740187846568,-500.0,0.00013863,2]
[354032734,1740187846579,-500.0,0.00013863,2]
[354032735,1740187846589,-419.8111072,0.00013863,2]
[354032736,1740187846870,-203.93147519,0.00013698,2]
[354032737,1740187846880,-504.70546542,0.00013698,2]
[354032738,1740187846889,-374.08125055,0.00013698,2]
[354032739,1740187846898,-502.87608747,0.00013698,2]
[354032740,1740187846907,-531.23758963,0.00013698,2]
[354032741,1740187846916,-151.0,0.00013698,2]
[354032742,1740187846925,-500.80286371,0.00013698,2]
[354032743,1740187846934,-151.0,0.00013698,2]
[354032744,1740187846943,-151.0,0.00013698,2]
[354032745,1740187846953,-80.1888928,0.00013863,2]
[354032746,1740187846962,-591.57814628,0.00013863,2]
[354032747,1740187846972,-500.0,0.00013863,2]
[354032748,1740187846982,-500.0,0.00013863,2]
[354032749,1740187846991,-500.0,0.00013863,2]
[354032750,1740187847000,-500.0,0.00013863,2]
[354032751,1740187847009,-500.0,0.00013863,2]
[354032752,1740187847018,-500.0,0.00013863,2]
[354032753,1740187847028,-237.34870224,0.00013863,2]
[354032754,1740187847037,-785.15,0.00013863,2]
[354032755,1740187847046,-431.98805514,0.00013863,2]
[354032756,1740187847058,-68.01194486,0.00013863,2]
[354032757,1740187847067,-303.22058333,0.00013863,2]
[354032758,1740187847076,-1053.58,0.00013863,2]
[354032759,1740187847085,-500.0,0.00013863,2]
[354032760,1740187847094,-500.0,0.00013863,2]
[354032761,1740187847103,-500.0,0.00013863,2]
[354032762,1740187847113,-500.0,0.00013863,2]
[354032763,1740187847122,-500.0,0.00013863,2]
[354032764,1740187847131,-500.0,0.00013863,2]
[354032765,1740187847140,-173.348992,0.00013863,2]
[354032766,1740187847149,-173.348992,0.00013863,2]
[354032767,1740187847159,-500.0,0.00013863,2]
[354032768,1740187847168,-503.53104628,0.00013863,2]
[354032769,1740187847177,-500.0,0.00013863,2]
[354032770,1740187847186,-500.0,0.00013863,2]
[354032771,1740187847196,-500.0,0.00013863,2]
[354032772,1740187847205,-500.0,0.00013863,2]
[354032773,1740187847215,-504.03254004,0.00013863,2]
[354032774,1740187847224,-503.27074712,0.00013863,2]
[354032775,1740187847233,-504.00893526,0.00013863,2]
[354032776,1740187847242,-504.03492033,0.00013863,2]
[354032777,1740187847252,-202.85086485,0.00013863,2]
[354032778,1740187847261,-174.594096,0.00013899,2]
[354032779,1740187847271,-151.0,0.00013899,2]
[354032780,1740187847339,-495.606478,0.00013899,2]
[354032781,1740187847356,-495.606478,0.00013899,2]
[354032782,1740187847365,-2661.64527,0.00013899,2]
[354032783,1740187847379,-2661.64527,0.00013899,2]
[354032784,1740187847388,-2006.50607971,0.000139,2]
[354032785,1740187847399,-388.403669,0.00013944,2]
[354032786,1740187847409,-388.403669,0.00013944,2]
[354032787,1740187847418,-151.0,0.00013945,2]
[354032788,1740187847427,-500.0,0.00013945,2]
[354032789,1740187847436,-500.0,0.00013945,2]
[354032790,1740187847446,-500.0,0.00013945,2]
[354032791,1740187847455,-500.0,0.00013945,2]
[354032792,1740187847465,-500.0,0.00013945,2]
[354032793,1740187847474,-500.0,0.00013945,2]
[354032794,1740187847484,-412.39256947,0.00013945,2]
[354032795,1740187847494,-500.0,0.00013945,2]
[354032796,1740187847504,-500.0,0.00013945,2]
[354032797,1740187847513,-419.12539594,0.00013945,2]
[354032798,1740187847522,-500.0,0.00013945,2]
[354032799,1740187847531,-500.0,0.00013945,2]
[354032800,1740187847541,-500.0,0.00013945,2]
[354032801,1740187847549,-500.0,0.00013945,2]
[354032802,1740187847559,-500.0,0.00013945,2]
[354032803,1740187847568,-341.42377964,0.00013945,2]
[354032804,1740187847579,-501.250964,0.00013945,2]
[354032805,1740187847590,-166.056271,0.00013945,2]
[354032806,1740187847599,-501.250964,0.00013945,2]
[354032807,1740187847607,-166.056271,0.00013945,2]
[354032808,1740187847618,-465.36,0.00013945,2]
[354032809,1740187847627,-500.0,0.00013945,2]
[354032810,1740187847636,-219.62066256,0.00013945,2]
[354032811,1740187847647,-500.0,0.00013945,2]
[354032812,1740187847657,-500.0,0.00013945,2]
[354032813,1740187847666,-500.0,0.00013945,2]
[354032814,1740187847676,-601.84,0.00013945,2]
[354032815,1740187847685,-233.96,0.00013945,2]
[354032816,1740187847694,-208.11,0.00013945,2]
[354032817,1740187847703,-500.0,0.00013945,2]
[354032818,1740187847712,-500.0,0.00013945,2]
[354032819,1740187847722,-527.78,0.00013945,2]
[354032820,1740187847731,-500.0,0.00013945,2]
[354032821,1740187847740,-500.0,0.00013945,2]
[354032822,1740187847748,-9433.96,0.00013945,2]
[354032823,1740187847757,-500.0,0.00013945,2]
[354032824,1740187847766,-500.0,0.00013945,2]
[354032825,1740187847775,-500.0,0.00013945,2]
[354032826,1740187847785,-500.0,0.00013945,2]
[354032827,1740187847794,-500.0,0.00013945,2]
[354032828,1740187847803,-151.0,0.00013945,2]
[354032829,1740187847811,-500.0,0.00013945,2]
[354032830,1740187847820,-500.0,0.00013945,2]
[354032831,1740187847829,-500.0,0.00013945,2]
[354032832,1740187847838,-2126.18,0.00013945,2]
[354032833,1740187847848,-500.0,0.00013945,2]
[354032834,1740187847856,-500.0,0.00013945,2]
[354032835,1740187847866,-500.0,0.00013945,2]
[354032836,1740187847875,-500.0,0.00013945,2]
[354032837,1740187847884,-666.24,0.00013945,2]
[354032838,1740187847893,-502.43334708,0.00013945,2]
[354032839,1740187847902,-4209.51,0.00013945,2]
[354032840,1740187847911,-677.23,0.00013945,2]
[354032841,1740187847920,-1273.3,0.00013945,2]
[354032842,1740187847929,-695.98,0.00013945,2]
[354032843,1740187847938,-500.0,0.00013945,2]
[354032844,1740187847947,-500.0,0.00013945,2]
[354032845,1740187847956,-500.0,0.00013945,2]
[354032846,1740187847965,-500.0,0.00013945,2]
[354032847,1740187847975,-785.15,0.00013945,2]
[354032848,1740187847984,-500.0,0.00013945,2]
[354032849,1740187847993,-1053.58,0.00013945,2]
[354032850,1740187848003,-500.0,0.00013945,2]
[354032851,1740187848012,-500.0,0.00013945,2]
[354032852,1740187848021,-500.0,0.00013945,2]
[354032853,1740187848031,-173.348992,0.00013945,2]
[354032854,1740187848041,-173.348992,0.00013945,2]
[354032855,1740187848051,-500.0,0.00013945,2]
[354032856,1740187848061,-500.0,0.00013945,2]
[354032857,1740187848071,-500.0,0.00013945,2]
[354032858,1740187848081,-504.31991997,0.00013945,2]
[354032859,1740187848091,-503.28994495,0.00013945,2]
[354032860,1740187848101,-500.0,0.0001397,2]
[354032861,1740187848110,-151.0,0.00013989,2]
[354032862,1740187848120,-151.0,0.00013989,2]
[354032863,1740187848131,-749.510208,0.00013989,2]
[354032864,1740187848141,-749.510208,0.00013989,2]
[354032865,1740187848150,-240.274127,0.00013989,2]
[354032866,1740187848160,-151.0,0.00013989,2]
[354032867,1740187848169,-240.274127,0.00013989,2]
[354032868,1740187848178,-151.0,0.00013989,2]
[354032869,1740187848188,-1000.0,0.0001399,7]
[354032870,1740187848197,-1000.0,0.0001399,7]
[354032871,1740187848207,-1000.0,0.0001399,7]
[354032872,1740187848217,-1000.0,0.0001399,7]
[354032873,1740187848226,-1000.0,0.0001399,7]
[354032874,1740187848235,-1000.0,0.0001399,7]
[354032875,1740187848246,-1000.0,0.0001399,7]
[354032876,1740187848255,-1000.0,0.0001399,7]
[354032877,1740187848264,-1000.0,0.0001399,7]
[354032878,1740187848274,-1000.0,0.0001399,7]
[354032879,1740187848283,-454.985877,0.0001399,7]
[354032880,1740187848293,-495.606478,0.0001399,2]
[354032881,1740187848302,-495.606478,0.0001399,2]
[354032882,1740187848311,-2661.64527,0.0001399,2]
[354032883,1740187848322,-2661.64527,0.0001399,2]
[354032884,1740187848332,-7438.69753278,0.0001399,2]
[354032885,1740187848342,-2941.04305892,0.00014,2]
[354032886,1740187848352,-173.348992,0.00014008,2]
[354032887,1740187848362,-173.348992,0.00014008,2]
[354032888,1740187848372,-388.403669,0.00014026,2]
[354032889,1740187848383,-388.403669,0.00014026,2]
[354032890,1740187848393,-151.0,0.00014027,2]
[354032891,1740187848404,-500.0,0.00014027,2]
[354032892,1740187848414,-500.0,0.00014027,2]
[354032893,1740187848423,-151.0,0.00014027,2]
[354032894,1740187848433,-500.0,0.00014027,2]
[354032895,1740187848442,-500.0,0.00014027,2]
[354032896,1740187848451,-501.250964,0.00014027,2]
[354032897,1740187848461,-166.056271,0.00014027,2]
[354032898,1740187848470,-501.250964,0.00014027,2]
[354032899,1740187848481,-166.056271,0.00014027,2]
[354032900,1740187848491,-500.0,0.00014027,2]
[354032901,1740187848501,-500.0,0.00014027,2]
[354032902,1740187848511,-601.84,0.00014027,2]
[354032903,1740187848520,-500.0,0.00014027,2]
[354032904,1740187848530,-500.0,0.00014027,2]
[354032905,1740187848539,-527.78,0.00014027,2]
[354032906,1740187848548,-500.0,0.00014027,2]
[354032907,1740187848558,-238.44,0.00014027,2]
[354032908,1740187848567,-9433.96,0.00014027,2]
[354032909,1740187848579,-500.0,0.00014027,2]
[354032910,1740187848590,-500.0,0.00014027,2]
[354032911,1740187848600,-500.0,0.00014027,2]
[354032912,1740187848610,-500.0,0.00014027,2]
[354032913,1740187848621,-151.0,0.00014027,2]
[354032914,1740187848631,-500.0,0.00014027,2]
[354032915,1740187848699,-2126.18,0.00014027,2]
[354032916,1740187848715,-608.40771035,0.00014027,2]
[354032917,1740187848724,-500.0,0.00014027,2]
[354032918,1740187848735,-500.0,0.00014027,2]
[354032919,1740187848745,-666.24,0.00014027,2]
[354032920,1740187848755,-4209.51,0.00014027,2]
[354032921,1740187848765,-677.23,0.00014027,2]
[354032922,1740187848774,-1273.3,0.00014027,2]
[354032923,1740187848784,-695.98,0.00014027,2]
[354032924,1740187848794,-500.0,0.00014027,2]
[354032925,1740187848804,-500.0,0.00014027,2]
[354032926,1740187848813,-500.0,0.00014027,2]
[354032927,1740187848823,-785.15,0.00014027,2]
[354032928,1740187848833,-500.0,0.00014027,2]
[354032929,1740187848843,-1053.58,0.00014027,2]
[354032930,1740187848852,-500.0,0.00014027,2]
[354032931,1740187848862,-522.72,0.00014027,2]
[354032932,1740187848871,-500.0,0.00014027,2]
[354032933,1740187848882,-463.23188228,0.00014027,2]
[354032934,1740187848892,-500.0,0.00014027,2]
[354032935,1740187848902,-500.0,0.00014027,2]
[354032936,1740187848912,-427.06457576,0.00014091,2]
[354032937,1740187848922,-151.0,0.000141,2]
[354032938,1740187848931,-500.0,0.00014109,2]
[354032939,1740187848941,-500.0,0.00014109,2]
[354032940,1740187848951,-151.0,0.00014109,2]
[354032941,1740187848960,-151.0,0.00014109,2]
[354032942,1740187848972,-749.510208,0.00014109,2]
[354032943,1740187848981,-749.510208,0.00014109,2]
[354032944,1740187848991,-500.0,0.00014109,2]
[354032945,1740187849001,-240.274127,0.00014109,2]
[354032946,1740187849011,-241.732592,0.00014109,2]
[354032947,1740187849020,-240.274127,0.00014109,2]
[354032948,1740187849030,-500.0,0.00014109,2]
[354032949,1740187849039,-631.6,0.00014109,2]
[354032950,1740187849049,-601.84,0.00014109,2]
[354032951,1740187849059,-388.403669,0.00014109,2]
[354032952,1740187849070,-388.403669,0.00014109,2]
[354032953,1740187849080,-500.0,0.00014109,2]
[354032954,1740187849089,-500.0,0.00014109,2]
[354032955,1740187849099,-527.78,0.00014109,2]
[354032956,1740187849110,-500.0,0.00014109,2]
[354032957,1740187849119,-495.606478,0.00014109,2]
[354032958,1740187849130,-495.606478,0.00014109,2]
[354032959,1740187849140,-9433.96,0.00014109,2]
[354032960,1740187849150,-500.0,0.00014109,2]
[354032961,1740187849160,-348.04,0.00014109,2]
[354032962,1740187849170,-500.0,0.00014109,2]
[354032963,1740187849180,-500.0,0.00014109,2]
[354032964,1740187849191,-151.0,0.00014109,2]
[354032965,1740187849201,-500.0,0.00014109,2]
[354032966,1740187849211,-2126.18,0.00014109,2]
[354032967,1740187849222,-2661.64527,0.00014109,2]
[354032968,1740187849232,-2661.64527,0.00014109,2]
[354032969,1740187849242,-500.0,0.00014109,2]
[354032970,1740187849252,-500.0,0.00014109,2]
[354032971,1740187849262,-666.24,0.00014109,2]
[354032972,1740187849272,-4209.51,0.00014109,2]
[354032973,1740187849282,-677.23,0.00014109,2]
[354032974,1740187849292,-1273.3,0.00014109,2]
[354032975,1740187849303,-695.98,0.00014109,2]
[354032976,1740187849313,-500.0,0.00014109,2]
[354032977,1740187849323,-500.0,0.00014109,2]
[354032978,1740187849333,-500.0,0.00014109,2]
[354032979,1740187849344,-785.15,0.00014109,2]
[354032980,1740187849354,-500.0,0.00014109,2]
[354032981,1740187849363,-1053.58,0.00014109,2]
[354032982,1740187849373,-500.0,0.00014109,2]
[354032983,1740187849383,-500.0,0.00014109,2]
[354032984,1740187849393,-173.348992,0.00014109,2]
[354032985,1740187849402,-173.348992,0.00014109,2]
[354032986,1740187849412,-497.24010867,0.00014109,2]
[354032987,1740187849421,-500.0,0.00014109,2]
[354032988,1740187849431,-245.0,0.00014191,2]
[354032989,1740187849440,-151.0,0.00014191,2]
[354032990,1740187849450,-231.355502,0.00014191,2]
[354032991,1740187849459,-500.0,0.00014191,2]
[354032992,1740187849471,-500.0,0.00014191,2]
[354032993,1740187849481,-151.0,0.00014191,2]
[354032994,1740187849490,-604.62,0.00014191,2]
[354032995,1740187849500,-500.0,0.00014191,2]
[354032996,1740187849510,-501.250964,0.00014191,2]
[354032997,1740187849519,-166.056271,0.00014191,2]
[354032998,1740187849529,-501.250964,0.00014191,2]
[354032999,1740187849539,-166.056271,0.00014191,2]
[354033000,1740187849548,-601.84,0.00014191,2]
[354033001,1740187849557,-500.0,0.00014191,2]
[354033002,1740187849567,-527.78,0.00014191,2]
[354033003,1740187849577,-500.0,0.00014191,2]
[354033004,1740187849589,-9433.96,0.00014191,2]
[354033005,1740187849599,-500.0,0.00014191,2]
[354033006,1740187849608,-500.0,0.00014191,2]
[354033007,1740187849619,-500.0,0.00014191,2]
[354033008,1740187849629,-500.0,0.00014191,2]
[354033009,1740187849639,-2126.18,0.00014191,2]
[354033010,1740187849649,-500.0,0.00014191,2]
[354033011,1740187849659,-500.0,0.00014191,2]
[354033012,1740187849669,-666.24,0.00014191,2]
[354033013,1740187849678,-4209.51,0.00014191,2]
[354033014,1740187849688,-677.23,0.00014191,2]
[354033015,1740187849698,-1273.3,0.00014191,2]
[354033016,1740187849707,-695.98,0.00014191,2]
[354033017,1740187849718,-500.0,0.00014191,2]
[354033018,1740187849728,-500.0,0.00014191,2]
[354033019,1740187849737,-275.77614959,0.00014191,2]
[354033020,1740187849747,-785.15,0.00014191,2]
[354033021,1740187849756,-500.0,0.00014191,2]
[354033022,1740187849766,-1053.58,0.00014191,2]
[354033023,1740187849775,-500.0,0.00014191,2]
[354033024,1740187849785,-313.61999994,0.00014191,2]
[354033025,1740187849795,-173.348992,0.00014191,2]
[354033026,1740187849806,-173.348982,0.00014191,2]
[354033027,1740187849816,-500.0,0.00014191,2]
[354033028,1740187849826,-151.0,0.000142,2]
[354033029,1740187849835,-1000.0,0.00014221,2]
[354033030,1740187849845,-1000.0,0.00014221,2]
[354033031,1740187849856,-1072.73080392,0.00014221,2]
[354033032,1740187849866,-1000.0,0.00014221,2]
[354033033,1740187849875,-516.53858009,0.00014221,2]
[354033034,1740187849885,-495.606478,0.00014221,2]
[354033035,1740187849894,-495.606478,0.00014221,2]
[354033036,1740187849904,-2661.64527,0.00014221,2]
[354033037,1740187849914,-2661.64527,0.00014221,2]
[354033038,1740187849923,-162.072239,0.00014255,2]
[354033039,1740187849934,-388.403669,0.00014272,2]
[354033040,1740187850004,-388.403669,0.00014272,2]
[354033041,1740187850014,-151.0,0.00014272,2]
[354033042,1740187850024,-500.0,0.00014273,2]
[354033043,1740187850033,-500.0,0.00014273,2]
[354033044,1740187850043,-151.0,0.00014273,2]
[354033045,1740187850052,-151.0,0.00014273,2]
[354033046,1740187850061,-749.510208,0.00014273,2]
[354033047,1740187850071,-749.510208,0.00014273,2]
[354033048,1740187850080,-240.274127,0.00014273,2]
[354033049,1740187850090,-240.274127,0.00014273,2]
[354033050,1740187850099,-500.0,0.00014273,2]
[354033051,1740187850109,-601.84,0.00014273,2]
[354033052,1740187850119,-500.0,0.00014273,2]
[354033053,1740187850128,-527.78,0.00014273,2]
[354033054,1740187850137,-500.0,0.00014273,2]
[354033055,1740187850147,-9433.96,0.00014273,2]
[354033056,1740187850158,-500.0,0.00014273,2]
[354033057,1740187850167,-500.0,0.00014273,2]
[354033058,1740187850178,-500.0,0.00014273,2]
[354033059,1740187850188,-500.0,0.00014273,2]
[354033060,1740187850197,-2126.18,0.00014273,2]
[354033061,1740187850207,-500.0,0.00014273,2]
[354033062,1740187850217,-585.92,0.00014273,2]
[354033063,1740187850227,-666.24,0.00014273,2]
[354033064,1740187850237,-4209.51,0.00014273,2]
[354033065,1740187850246,-677.23,0.00014273,2]
[354033066,1740187850255,-1273.3,0.00014273,2]
[354033067,1740187850265,-695.98,0.00014273,2]
[354033068,1740187850275,-500.0,0.00014273,2]
[354033069,1740187850286,-500.0,0.00014273,2]
[354033070,1740187850296,-785.15,0.00014273,2]
[354033071,1740187850305,-500.0,0.00014273,2]
[354033072,1740187850315,-1053.58,0.00014273,2]
[354033073,1740187850324,-480.38,0.00014273,2]
[354033074,1740187850333,-500.0,0.00014273,2]
[354033075,1740187850343,-151.0,0.000143,2]
[354033076,1740187850354,-465.48431851,0.00014305,2]
[354033077,1740187850363,-1000.0,0.00014321,2]
[354033078,1740187850372,-1000.0,0.00014321,2]
[354033079,1740187850381,-427.06457576,0.00014338,2]
[354033080,1740187850390,-1172.14844933,0.00014338,2]
[354033081,1740187850401,-495.606478,0.00014355,2]
[354033082,1740187850410,-495.606478,0.00014355,2]
[354033083,1740187850419,-2661.64527,0.00014355,2]
[354033084,1740187850429,-2661.64527,0.00014355,2]
[354033085,1740187850438,-151.0,0.00014356,2]
[354033086,1740187850448,-151.0,0.00014356,2]
[354033087,1740187850457,-151.0,0.00014356,2]
[354033088,1740187850466,-500.0,0.00014356,2]
[354033089,1740187850475,-500.0,0.00014356,2]
[354033090,1740187850484,-151.0,0.00014356,2]
[354033091,1740187850493,-500.0,0.00014356,2]
[354033092,1740187850502,-601.84,0.00014356,2]
[354033093,1740187850512,-388.403669,0.00014356,2]
[354033094,1740187850521,-388.403669,0.00014356,2]
[354033095,1740187850530,-500.0,0.00014356,2]
[354033096,1740187850540,-527.78,0.00014356,2]
[354033097,1740187850553,-500.0,0.00014356,2]
[354033098,1740187850571,-9433.96,0.00014356,2]
[354033099,1740187850587,-500.0,0.00014356,2]
[354033100,1740187850603,-500.0,0.00014356,2]
[354033101,1740187850622,-237.74,0.00014356,2]
[354033102,1740187850638,-256.22724,0.00014356,2]
[354033103,1740187850656,-500.0,0.00014356,2]
[354033104,1740187850671,-2126.18,0.00014356,2]
[354033105,1740187850687,-500.0,0.00014356,2]
[354033106,1740187850703,-666.24,0.00014356,2]
[354033107,1740187850715,-4209.51,0.00014356,2]
[354033108,1740187850729,-677.23,0.00014356,2]
[354033109,1740187850745,-1273.3,0.00014356,2]
[354033110,1740187850761,-695.98,0.00014356,2]
[354033111,1740187850779,-500.0,0.00014356,2]
[354033112,1740187850792,-500.0,0.00014356,2]
[354033113,1740187850805,-785.15,0.00014356,2]
[354033114,1740187850821,-500.0,0.00014356,2]
[354033115,1740187850835,-1053.58,0.00014356,2]